[Event "NJSK 2024 C"]
[Site "Groningen, Netherlands"]
[Date "2024.05.03"]
[Round "9.6"]
[White "De Jong, Lode"]
[Black "Guillaumond, Matthieu"]
[Result "0-1"]
[TimeControl "90min/40moves + 30min + 30sec/move"]
[WhiteElo "1587"]
[BlackElo "1945"]

1. d4 {[%clk 01:30:59]} Nf6 {[%clk 01:30:50]} {[%emt 00:00:10]} 2. c4 {[%clk
01:31:26]} {[%emt 00:00:03]} g6 {[%clk 01:31:02]} {[%emt 00:00:18]} 3. Nc3
{[%clk 01:31:53]} {[%emt 00:00:03]} Bg7 {[%clk 01:31:25]} {[%emt 00:00:07]} 4.
e4 {[%clk 01:32:17]} {[%emt 00:00:06]} O-O {[%clk 01:31:46]} {[%emt 00:00:08]}
5. Nf3 {[%clk 01:32:46]} {[%emt 00:00:02]} d6 {[%clk 01:32:00]} {[%emt
00:00:17]} 6. Be2 {[%clk 01:33:06]} {[%emt 00:00:10]} e5 {[%clk 01:32:16]}
{[%emt 00:00:13]} 7. O-O {[%clk 01:33:23]} {[%emt 00:00:13]} Nc6 {[%clk
01:32:27]} {[%emt 00:00:19]} 8. d5 {[%clk 01:33:49]} {[%emt 00:00:05]} Ne7
{[%clk 01:32:47]} {[%emt 00:00:09]} 9. Ne1 {[%clk 01:34:12]} {[%emt 00:00:07]}
Nd7 {[%clk 01:32:54]} {[%emt 00:00:22]} 10. Be3 {[%clk 01:34:29]} {[%emt
00:00:14]} f5 {[%clk 01:33:10]} {[%emt 00:00:14]} 11. f3 {[%clk 01:34:56]}
{[%emt 00:00:03]} f4 {[%clk 01:33:31]} {[%emt 00:00:09]} 12. Bf2 {[%clk
01:35:21]} {[%emt 00:00:05]} g5 {[%clk 01:33:45]} {[%emt 00:00:16]} 13. a4
{[%clk 01:35:48]} {[%emt 00:00:03]} a5 {[%clk 01:33:27]} {[%emt 00:00:49]} 14.
Nd3 {[%clk 01:35:39]} {[%emt 00:00:38]} b6 {[%clk 01:32:41]} {[%emt 00:01:16]}
15. b4 {[%clk 01:36:04]} {[%emt 00:00:05]} axb4 {[%clk 01:33:05]} {[%emt
00:00:07]} 16. Nxb4 {[%clk 01:36:29]} {[%emt 00:00:05]} Nf6 {[%clk 01:33:06]}
{[%emt 00:00:28]} 17. Be1 {[%clk 01:36:15]} {[%emt 00:00:43]} Bd7 {[%clk
01:31:00]} {[%emt 00:02:37]} 18. Nd3 {[%clk 01:35:42]} {[%emt 00:01:04]} Ng6
{[%clk 01:30:43]} {[%emt 00:00:46]} 19. Nb5 {[%clk 01:35:04]} {[%emt 00:01:08]}
g4 {[%clk 01:29:34]} {[%emt 00:01:39]} 20. a5 {[%clk 01:34:42]} {[%emt
00:00:52]} g3 {[%clk 01:25:40]} {[%emt 00:04:23]} 21. hxg3 {[%clk 01:25:31]}
{[%emt 00:09:42]} fxg3 {[%clk 01:25:49]} {[%emt 00:00:21]} 22. Bxg3 {[%clk
01:25:54]} {[%emt 00:00:08]} Nh5 {[%clk 01:25:47]} {[%emt 00:00:31]} 23. Bh2
{[%clk 01:20:33]} {[%emt 00:05:52]} bxa5 {[%clk 01:19:15]} {[%emt 00:07:02]} 24.
Qd2 {[%clk 01:16:40]} {[%emt 00:04:22]} Ngf4 {[%clk 01:11:34]} {[%emt
00:08:10]} 25. Rfd1 {[%clk 01:06:43]} {[%emt 00:10:28]} Nxe2+ {[%clk 01:01:20]}
{[%emt 00:10:44]} 26. Qxe2 {[%clk 01:06:54]} {[%emt 00:00:20]} Bh6 {[%clk
01:01:27]} {[%emt 00:00:22]} 27. g3 {[%clk 01:02:06]} {[%emt 00:05:18]} Bxb5
{[%emt 00:09:11]} 28. cxb5 {[%clk 01:02:18]} {[%emt 00:00:16]} Qg5 {[%clk
00:52:53]} {[%emt 00:00:25]} 29. Kf2 {[%clk 01:02:18]} {[%emt 00:00:30]} Rf7
{[%clk 00:50:10]} {[%emt 00:03:13]} 30. Rg1 {[%clk 01:01:10]} {[%emt 00:01:38]}
Kh8 {[%clk 00:49:14]} {[%emt 00:01:26]} 31. Ne1 {[%clk 00:56:09]} {[%emt
00:05:30]} Nf6 {[%clk 00:46:36]} {[%emt 00:03:09]} 32. Rg2 {[%clk 00:49:20]}
{[%emt 00:07:19]} Nd7 {[%clk 00:42:18]} {[%emt 00:04:49]} 33. Bg1 {[%clk
00:46:55]} {[%emt 00:02:54]} Nc5 {[%clk 00:39:27]} {[%emt 00:03:21]} 34. Kf1
{[%clk 00:38:07]} {[%emt 00:09:18]} Nb3 {[%clk 00:39:56]} {[%emt 00:00:02]} 35.
Ra3 {[%clk 00:37:41]} {[%emt 00:00:55]} Nd2+ {[%clk 00:37:53]} {[%emt
00:02:31]} 36. Kf2 {[%clk 00:37:42]} {[%emt 00:00:30]} Raf8 {[%clk 00:38:17]}
{[%emt 00:00:08]} 37. Rh2 {[%clk 00:31:52]} {[%emt 00:06:19]} Rg8 {[%clk
00:30:31]} {[%emt 00:08:16]} 38. Rh3 {[%clk 00:27:44]} {[%emt 00:04:38]} Rfg7
{[%clk 00:17:54]} {[%emt 00:13:07]} 39. g4 {[%clk 00:25:35]} {[%emt 00:02:39]}
Rf8 {[%clk 00:16:50]} {[%emt 00:01:34]} 40. Kg2 {[%clk 00:24:56]} {[%emt
00:01:09]} Qg6 {[%clk 00:13:15]} {[%emt 00:04:05]} 41. Rxh6 {[%clk 00:19:40]}
{[%emt 00:05:46]} Qxh6 {[%clk 00:13:39]} {[%emt 00:00:05]} 42. Be3 {[%clk
00:20:06]} {[%emt 00:00:05]} Qh4 {[%clk 00:12:17]} {[%emt 00:01:52]} 43. Bxd2
{[%clk 00:17:07]} {[%emt 00:03:29]} Rg6 {[%clk 00:11:40]} {[%emt 00:01:06]} 44.
Nd3 {[%clk 00:13:27]} {[%emt 00:04:11]} Rfg8 {[%clk 00:11:29]} {[%emt
00:00:41]} 45. Nf2 {[%clk 00:11:13]} {[%emt 00:02:44]} h5 {[%clk 00:11:28]}
{[%emt 00:00:31]} 46. Be1 {[%clk 00:07:29]} {[%emt 00:04:14]} a4 {[%clk
00:08:29]} {[%emt 00:03:30]} 47. Qe3 {[%clk 00:05:17]} {[%emt 00:02:41]} Qf6
{[%clk 00:06:08]} {[%emt 00:02:51]} 48. Qe2 {[%clk 00:03:53]} {[%emt 00:01:53]}
Qf4 {[%clk 00:05:52]} {[%emt 00:00:47]} 49. Bd2 {[%clk 00:03:59]} {[%emt
00:00:24]} Qf6 {[%clk 00:06:01]} {[%emt 00:00:20]} 50. Ra1 {[%clk 00:03:27]}
{[%emt 00:01:03]} R8g7 {[%clk 00:05:30]} {[%emt 00:01:02]} 51. Rxa4 {[%clk
00:03:37]} {[%emt 00:00:20]} hxg4 {[%clk 00:05:28]} {[%emt 00:00:31]} 52. Ra8+
{[%clk 00:03:27]} {[%emt 00:00:40]} Kh7 {[%clk 00:05:53]} {[%emt 00:00:05]} 53.
Nxg4 {[%clk 00:03:43]} {[%emt 00:00:14]} Qh4 {[%clk 00:05:57]} {[%emt
00:00:27]} 54. Qf2 {[%clk 00:02:07]} {[%emt 00:02:05]} Rxg4+ {[%clk 00:06:00]}
{[%emt 00:00:26]} 55. fxg4 {[%clk 00:02:32]} {[%emt 00:00:06]} Qxg4+ {[%clk
00:05:17]} {[%emt 00:01:11]} 56. Kh2 {[%clk 00:02:01]} {[%emt 00:01:03]} Qh5+
{[%clk 00:05:33]} {[%emt 00:00:14]} 0-1

[Event "NJSK 2024 C"]
[Site "Groningen, Netherlands"]
[Date "2024.05.03"]
[Round "9.7"]
[White "Winter, Sven"]
[Black "Ambrona Navarro, Himar"]
[Result "1-0"]
[TimeControl "90min/40moves + 30min + 30sec/move"]
[WhiteElo "1768"]
[BlackElo "1963"]

1. Nf3 {[%clk 01:30:57]} {[%emt 00:00:02]} Nf6 {[%clk 01:30:29]} {[%emt
00:00:27]} 2. c4 {[%clk 01:31:24]} {[%emt 00:00:07]} d6 {[%clk 01:30:43]}
{[%emt 00:00:15]} 3. d4 {[%clk 01:31:48]} {[%emt 00:00:07]} g6 {[%clk
01:31:05]} {[%emt 00:00:07]} 4. Nc3 {[%clk 01:32:04]} {[%emt 00:00:16]} Bg7
{[%clk 01:31:27]} {[%emt 00:00:07]} 5. e4 {[%clk 01:32:28]} {[%emt 00:00:06]}
O-O {[%clk 01:31:43]} {[%emt 00:00:13]} 6. Be2 {[%clk 01:32:50]} {[%emt
00:00:09]} e5 {[%clk 01:31:57]} {[%emt 00:00:16]} 7. dxe5 {[%clk 01:33:09]}
{[%emt 00:00:11]} dxe5 {[%clk 01:32:15]} {[%emt 00:00:12]} 8. Qxd8 {[%clk
01:33:36]} {[%emt 00:00:03]} Rxd8 {[%clk 01:32:19]} {[%emt 00:00:27]} 9. Nxe5
{[%clk 01:33:57]} {[%emt 00:00:08]} Nxe4 {[%clk 01:32:01]} {[%emt 00:00:48]} 10.
Nxe4 {[%clk 01:34:22]} {[%emt 00:00:06]} Bxe5 {[%clk 01:32:09]} {[%emt
00:00:22]} 11. Bg5 {[%clk 01:34:39]} {[%emt 00:00:12]} Re8 {[%clk 01:30:27]}
{[%emt 00:02:10]} 12. Nf6+ {[%clk 01:33:49]} {[%emt 00:01:22]} Bxf6 {[%clk
01:30:40]} {[%emt 00:00:17]} 13. Bxf6 {[%clk 01:34:12]} {[%emt 00:00:08]} Nc6
{[%clk 01:30:09]} {[%emt 00:01:01]} 14. f3 {[%clk 01:33:12]} {[%emt 00:01:30]}
Bf5 {[%clk 01:30:01]} {[%emt 00:00:36]} 15. Kf2 {[%clk 01:33:09]} {[%emt
00:00:34]} Re6 {[%clk 01:29:27]} {[%emt 00:01:01]} 16. Bc3 {[%clk 01:32:55]}
{[%emt 00:00:47]} Rae8 {[%clk 01:28:16]} {[%emt 00:01:40]} 17. Rhe1 {[%clk
01:32:58]} {[%emt 00:00:28]} h5 {[%clk 01:22:00]} {[%emt 00:06:46]} 18. h4
{[%clk 01:31:35]} {[%emt 00:01:53]} Rd6 {[%clk 01:17:27]} {[%emt 00:05:02]} 19.
c5 {[%clk 01:27:20]} {[%emt 00:04:46]} Rd7 {[%clk 01:10:59]} {[%emt 00:06:58]}
20. Bb5 {[%clk 01:21:08]} {[%emt 00:06:42]} Rxe1 {[%clk 01:03:24]} 21. Rxe1
{[%clk 01:21:04]} {[%emt 00:08:39]} Be6 {[%clk 01:03:38]} {[%emt 00:00:15]} 22.
Bc4 {[%clk 01:09:48]} {[%emt 00:11:48]} Nd4 {[%clk 01:00:49]} {[%emt 00:03:17]}
23. Bxd4 {[%clk 01:08:46]} {[%emt 00:01:33]} Rxd4 {[%clk 01:00:32]} {[%emt
00:00:47]} 24. Bxe6 {[%clk 01:08:51]} {[%emt 00:00:25]} fxe6 {[%clk 01:00:26]}
{[%emt 00:00:36]} 25. Rxe6 {[%clk 01:09:12]} {[%emt 00:00:09]} Kf7 {[%clk
00:55:01]} {[%emt 00:05:54]} 26. Re4 {[%clk 01:09:14]} {[%emt 00:00:29]} Rd2+
{[%clk 00:53:52]} {[%emt 00:01:38]} 27. Re2 {[%clk 01:09:35]} {[%emt 00:00:09]}
Rd4 {[%clk 00:52:19]} {[%emt 00:02:03]} 28. c6 {[%clk 01:09:05]} {[%emt
00:01:02]} b6 {[%clk 00:51:50]} {[%emt 00:00:58]} 29. b3 {[%clk 01:05:35]}
{[%emt 00:04:00]} Rxh4 {[%clk 00:44:52]} {[%emt 00:07:27]} 30. Rd2 {[%clk
01:05:26]} {[%emt 00:00:40]} Ke6 {[%clk 00:41:49]} {[%emt 00:03:33]} 31. Rd7
{[%clk 01:05:17]} {[%emt 00:00:39]} a5 {[%clk 00:41:21]} {[%emt 00:00:58]} 32.
Rxc7 {[%clk 01:05:23]} {[%emt 00:00:24]} Kd6 {[%clk 00:40:32]} {[%emt
00:01:18]} 33. Rg7 {[%clk 01:05:29]} {[%emt 00:00:25]} Kxc6 {[%clk 00:40:02]}
{[%emt 00:01:00]} 34. Rxg6+ {[%clk 01:05:37]} {[%emt 00:00:22]} Kb5 {[%clk
00:40:13]} {[%emt 00:00:19]} 35. Rh6 {[%clk 01:04:39]} {[%emt 00:01:27]} Rh1
{[%clk 00:39:29]} {[%emt 00:01:14]} 36. a4+ {[%clk 01:03:21]} {[%emt 00:01:49]}
Kc5 {[%clk 00:39:21]} {[%emt 00:00:37]} 37. g4 {[%clk 01:02:26]} {[%emt
00:01:25]} h4 {[%clk 00:38:50]} {[%emt 00:01:01]} 38. g5 {[%clk 01:00:51]}
{[%emt 00:02:06]} Rh2+ {[%clk 00:38:09]} {[%emt 00:01:09]} 39. Kg1 {[%clk
00:59:49]} {[%emt 00:01:34]} Rh3 {[%clk 00:38:22]} {[%emt 00:00:17]} 40. Kf2
{[%clk 00:50:30]} {[%emt 00:09:49]} Rh2+ {[%clk 00:32:04]} {[%emt 00:06:48]} 41.
Ke3 {[%clk 00:47:39]} {[%emt 00:03:21]} h3 {[%clk 00:30:46]} {[%emt 00:01:46]}
42. Kf4 {[%clk 00:45:26]} {[%emt 00:02:44]} Rh1 {[%clk 00:29:59]} {[%emt
00:01:13]} 43. Kf5 {[%clk 00:43:48]} {[%emt 00:02:13]} Kd4 {[%clk 00:27:09]}
{[%emt 00:03:20]} 44. g6 {[%clk 00:40:07]} {[%emt 00:04:11]} Kc3 {[%clk
00:24:00]} {[%emt 00:03:37]} 45. g7 {[%clk 00:38:51]} {[%emt 00:01:48]} Rg1
{[%clk 00:23:59]} {[%emt 00:00:31]} 46. Kf6 {[%clk 00:38:59]} {[%emt 00:00:22]}
Kxb3 {[%clk 00:22:42]} {[%emt 00:01:46]} 47. Rg6 {[%clk 00:38:57]} {[%emt
00:00:33]} Rxg6+ {[%clk 00:20:38]} 48. Kxg6 {[%clk 00:39:13]} {[%emt 00:02:48]}
Kxa4 {[%clk 00:21:03]} {[%emt 00:00:05]} 49. g8=Q {[%clk 00:39:25]} {[%emt
00:00:17]} b5 {[%clk 00:21:18]} {[%emt 00:00:17]} 50. Qa2+ {[%clk 00:39:22]}
{[%emt 00:00:32]} Kb4 {[%clk 00:21:40]} {[%emt 00:00:07]} 51. f4 {[%clk
00:39:38]} {[%emt 00:00:15]} a4 {[%clk 00:21:47]} {[%emt 00:00:24]} 52. f5
{[%clk 00:39:59]} {[%emt 00:00:08]} a3 {[%clk 00:21:29]} {[%emt 00:00:48]} 53.
f6 {[%clk 00:40:04]} {[%emt 00:00:25]} h2 {[%clk 00:21:33]} {[%emt 00:00:25]}
54. Qxh2 {[%clk 00:40:23]} {[%emt 00:00:13]} Kb3 {[%clk 00:22:01]} {[%emt
00:00:02]} 55. f7 {[%clk 00:40:39]} {[%emt 00:00:13]} a2 {[%clk 00:22:27]}
{[%emt 00:00:04]} 56. Qe5 {[%clk 00:40:52]} {[%emt 00:00:17]} 1-0

[Event "NJSK 2024 C"]
[Site "Groningen, Netherlands"]
[Date "2024.05.03"]
[Round "9.8"]
[White "Klein Tuente, Sam"]
[Black "Tetova, Amir"]
[Result "0-1"]
[TimeControl "90min/40moves + 30min + 30sec/move"]
[WhiteElo "1732"]
[BlackElo "1767"]

1. d4 {[%clk 01:30:57]} {[%emt 00:00:03]} Nf6 {[%clk 01:30:53]} {[%emt
00:00:08]} 2. c4 {[%clk 01:31:23]} {[%emt 00:00:04]} g6 {[%clk 01:31:19]}
{[%emt 00:00:04]} 3. Nc3 {[%clk 01:31:49]} {[%emt 00:00:04]} Bg7 {[%clk
01:31:44]} {[%emt 00:00:05]} 4. e4 {[%clk 01:32:14]} {[%emt 00:00:05]} d6
{[%clk 01:32:10]} {[%emt 00:00:04]} 5. f3 {[%clk 01:32:38]} {[%emt 00:00:05]}
O-O {[%clk 01:32:34]} {[%emt 00:00:06]} 6. Be3 {[%emt 00:00:18]} e5 {[%clk
01:32:45]} {[%emt 00:00:12]} 7. d5 {[%clk 01:33:21]} {[%emt 00:00:06]} Ne8
{[%clk 01:33:01]} {[%emt 00:00:15]} 8. g4 {[%clk 01:31:56]} {[%emt 00:01:55]}
Bh6 {[%clk 01:32:02]} {[%emt 00:01:29]} 9. Bf2 {[%clk 01:23:56]} {[%emt
00:08:29]} f5 {[%clk 01:30:13]} {[%emt 00:02:19]} 10. h4 {[%clk 01:22:09]}
{[%emt 00:02:17]} fxg4 {[%clk 01:28:44]} {[%emt 00:01:59]} 11. fxg4 {[%clk
01:22:33]} {[%emt 00:00:06]} Qd7 {[%clk 01:26:18]} {[%emt 00:02:57]} 12. g5
{[%clk 01:19:13]} {[%emt 00:03:50]} Bg7 {[%clk 01:26:38]} {[%emt 00:00:10]} 13.
Bh3 {[%clk 01:18:14]} {[%emt 00:01:29]} Qf7 {[%clk 01:26:50]} {[%emt 00:00:18]}
14. Qd2 {[%clk 01:17:53]} {[%emt 00:00:50]} Bxh3 {[%clk 01:27:03]} {[%emt
00:00:17]} 15. Rxh3 {[%clk 01:17:56]} {[%emt 00:00:27]} Nd7 {[%clk 01:21:29]}
{[%emt 00:06:04]} 16. Rf3 {[%clk 01:17:25]} {[%emt 00:01:02]} Qe7 {[%emt
00:00:10]} 17. O-O-O {[%emt 00:00:49]} Nc5 {[%clk 01:19:40]} {[%emt 00:01:20]}
18. Bxc5 {[%clk 01:17:18]} {[%emt 00:00:36]} dxc5 {[%clk 01:19:58]} {[%emt
00:00:13]} 19. Rdf1 {[%clk 01:16:49]} {[%emt 00:00:58]} Nd6 {[%clk 01:19:45]}
{[%emt 00:00:44]} 20. b3 {[%clk 01:13:37]} {[%emt 00:03:41]} Nf7 {[%clk
01:15:36]} {[%emt 00:04:39]} 21. Nh3 {[%clk 01:04:42]} {[%emt 00:09:25]} Nd6
{[%clk 01:12:37]} {[%emt 00:03:29]} 22. Qg2 {[%clk 01:04:23]} {[%emt 00:00:49]}
Rxf3 {[%clk 01:11:54]} {[%emt 00:01:14]} 23. Rxf3 {[%clk 01:03:31]} {[%emt
00:01:22]} Rf8 {[%clk 01:12:07]} {[%emt 00:00:17]} 24. Nd1 {[%clk 01:01:50]}
{[%emt 00:02:11]} Qd7 {[%clk 01:06:49]} {[%emt 00:05:47]} 25. Ndf2 {[%clk
01:00:40]} {[%emt 00:01:40]} c6 {[%clk 01:05:11]} {[%emt 00:02:09]} 26. Rxf8+
{[%emt 00:04:47]} Kxf8 {[%clk 01:03:56]} {[%emt 00:00:06]} 27. Nd3 {[%clk
00:54:07]} {[%emt 00:04:24]} b6 {[%clk 01:03:28]} {[%emt 00:00:58]} 28. Nhf2
{[%clk 00:53:27]} {[%emt 00:01:10]} cxd5 {[%clk 01:01:52]} {[%emt 00:02:06]} 29.
exd5 {[%clk 00:52:35]} {[%emt 00:01:22]} Qf5 {[%clk 00:59:41]} {[%emt
00:02:41]} 30. Qg3 {[%clk 00:49:24]} {[%emt 00:03:41]} Ne4 {[%emt 00:06:24]} 31.
Nxe4 {[%clk 00:42:55]} {[%emt 00:06:58]} Qxe4 {[%clk 00:53:50]} {[%emt
00:00:28]} 32. Qf2+ {[%clk 00:38:13]} {[%emt 00:05:13]} Ke7 {[%clk 00:53:31]}
{[%emt 00:00:49]} 33. Nxc5 {[%clk 00:38:18]} {[%emt 00:00:24]} bxc5 {[%clk
00:49:23]} {[%emt 00:04:38]} 34. Qxc5+ {[%clk 00:37:51]} {[%emt 00:00:57]} Kf7
{[%clk 00:49:17]} {[%emt 00:00:36]} 35. Qxa7+ {[%clk 00:36:24]} {[%emt
00:01:56]} Kg8 {[%clk 00:49:40]} {[%emt 00:00:07]} 36. Qb8+ {[%clk 00:35:32]}
{[%emt 00:01:23]} Bf8 {[%clk 00:49:55]} {[%emt 00:00:15]} 37. Qb6 {[%clk
00:26:57]} {[%emt 00:09:04]} Ba3+ {[%clk 00:49:02]} {[%emt 00:01:24]} 38. Kd2
{[%clk 00:25:19]} {[%emt 00:02:08]} Qg2+ {[%clk 00:46:18]} {[%emt 00:03:14]} 39.
Ke1 {[%clk 00:23:44]} {[%emt 00:02:06]} Qg3+ {[%clk 00:46:19]} {[%emt
00:00:28]} 40. Qf2 {[%clk 00:21:46]} {[%emt 00:02:28]} Bb4+ {[%clk 00:46:04]}
{[%emt 00:00:45]} 41. Kf1 {[%clk 00:21:11]} {[%emt 00:01:06]} Qd3+ {[%clk
00:45:36]} {[%emt 00:00:57]} 42. Kg2 {[%clk 00:19:48]} {[%emt 00:01:53]} Qe4+
{[%clk 00:45:12]} {[%emt 00:00:54]} 43. Kf1 {[%clk 00:18:45]} {[%emt 00:01:34]}
Qd3+ {[%clk 00:33:51]} {[%emt 00:11:50]} 44. Kg2 {[%clk 00:15:13]} {[%emt
00:04:02]} e4 {[%clk 00:31:54]} {[%emt 00:02:27]} 45. Qb6 {[%clk 00:14:46]}
{[%emt 00:00:57]} Qf3+ {[%clk 00:30:31]} {[%emt 00:01:53]} 46. Kg1 {[%clk
00:14:49]} {[%emt 00:00:25]} Qg3+ {[%clk 00:29:53]} {[%emt 00:01:09]} 47. Kf1
{[%clk 00:14:51]} {[%emt 00:00:28]} Qe1+ {[%clk 00:29:04]} {[%emt 00:01:20]} 48.
Kg2 {[%clk 00:15:17]} {[%emt 00:00:04]} Qe2+ {[%clk 00:29:15]} {[%emt
00:00:18]} 49. Kg1 {[%clk 00:14:18]} {[%emt 00:01:30]} Qg4+ {[%clk 00:28:37]}
{[%emt 00:01:07]} 50. Kf1 {[%clk 00:13:47]} {[%emt 00:01:02]} Qd1+ {[%clk
00:27:56]} {[%emt 00:01:11]} 51. Kg2 {[%clk 00:12:53]} {[%emt 00:01:20]} Qe2+
{[%clk 00:28:03]} {[%emt 00:00:27]} 52. Kg1 {[%clk 00:13:09]} {[%emt 00:00:13]}
Qg4+ {[%clk 00:28:26]} {[%emt 00:00:08]} 53. Kf1 {[%clk 00:13:23]} {[%emt
00:00:16]} Qh3+ {[%clk 00:27:48]} {[%emt 00:01:08]} 54. Kg1 {[%clk 00:13:40]}
{[%emt 00:00:13]} Qg3+ {[%clk 00:28:10]} {[%emt 00:00:08]} 55. Kf1 {[%clk
00:14:00]} {[%emt 00:00:10]} Qe1+ {[%clk 00:27:35]} {[%emt 00:01:06]} 56. Kg2
{[%clk 00:14:25]} {[%emt 00:00:04]} Qd2+ {[%clk 00:26:52]} {[%emt 00:01:13]} 57.
Kg3 {[%clk 00:12:20]} {[%emt 00:02:31]} Qe1+ {[%clk 00:21:06]} {[%emt
00:06:20]} 58. Kg4 {[%clk 00:12:24]} {[%emt 00:00:26]} Qe2+ {[%clk 00:19:15]}
{[%emt 00:02:19]} 59. Kf4 {[%clk 00:12:32]} {[%emt 00:00:23]} Qf3+ {[%clk
00:18:31]} {[%emt 00:01:15]} 60. Ke5 {[%clk 00:12:57]} {[%emt 00:00:05]} Qf5+
{[%clk 00:18:54]} {[%emt 00:00:05]} 61. Kd4 {[%clk 00:13:15]} {[%emt 00:00:13]}
Qf2+ {[%clk 00:19:23]} {[%emt 00:00:02]} 0-1